[Event "*** Titled Tuesday Blitz"]
[Site "Chess.com"]
[Date "2020.05.19"]
[Round "8"]
[White "heartofatiger"]
[Black "manitodeplomo"]
[Result "1-0"]
[WhiteElo "2474"]
[BlackElo "2589"]
[TimeControl "180+1"]
[EndTime "13:37:12 PDT"]
[Termination "heartofatiger won on time"]

1. e4 {[%clk 0:03:00.9]} 1... c5 {[%clk 0:02:59]} 2. Nc3 {[%clk 0:03:01.2]} 2...
Nc6 {[%clk 0:02:57.9]} 3. Nge2 {[%clk 0:02:59.7]} 3... g6 {[%clk 0:02:52.6]} 4.
g3 {[%clk 0:02:57.7]} 4... Bg7 {[%clk 0:02:52.1]} 5. Bg2 {[%clk 0:02:58.5]} 5...
Rb8 {[%clk 0:02:52.5]} 6. O-O {[%clk 0:02:58.2]} 6... b5 {[%clk 0:02:53]} 7. d3
{[%clk 0:02:57.7]} 7... b4 {[%clk 0:02:53.2]} 8. Nd5 {[%clk 0:02:57.7]} 8... d6
{[%clk 0:02:48.3]} 9. c3 {[%clk 0:02:57.2]} 9... e6 {[%clk 0:02:44.4]} 10. Ne3
{[%clk 0:02:56.1]} 10... bxc3 {[%clk 0:02:44.2]} 11. bxc3 {[%clk 0:02:55.8]}
11... Nge7 {[%clk 0:02:42.5]} 12. d4 {[%clk 0:02:53.9]} 12... cxd4 {[%clk
0:02:38.7]} 13. cxd4 {[%clk 0:02:53.5]} 13... Ba6 {[%clk 0:02:38.3]} 14. Nc2
{[%clk 0:02:44.5]} 14... Bxe2 {[%clk 0:02:26]} 15. Qxe2 {[%clk 0:02:44.2]} 15...
Nxd4 {[%clk 0:02:26.4]} 16. Nxd4 {[%clk 0:02:44.1]} 16... Bxd4 {[%clk
0:02:27.3]} 17. Bh6 {[%clk 0:02:33]} 17... Bxa1 {[%clk 0:02:25.8]} 18. Rxa1
{[%clk 0:02:32.8]} 18... e5 {[%clk 0:02:06.9]} 19. Bg7 {[%clk 0:02:29]} 19...
Rg8 {[%clk 0:02:06.2]} 20. Bf6 {[%clk 0:02:29.3]} 20... Qd7 {[%clk 0:02:02.4]}
21. Rd1 {[%clk 0:02:25.7]} 21... Qe6 {[%clk 0:01:57.7]} 22. Bg5 {[%clk 0:02:24]}
22... f6 {[%clk 0:01:55]} 23. Be3 {[%clk 0:02:23]} 23... Kf7 {[%clk 0:01:54.2]}
24. Bf1 {[%clk 0:02:19.2]} 24... Rgc8 {[%clk 0:01:43.6]} 25. Qa6 {[%clk
0:02:16.5]} 25... d5 {[%clk 0:01:38.4]} 26. exd5 {[%clk 0:01:47.8]} 26... Nxd5
{[%clk 0:01:28.8]} 27. Qxa7+ {[%clk 0:01:27.8]} 27... Ne7 {[%clk 0:00:58.6]} 28.
Bc5 {[%clk 0:01:21.6]} 28... Ra8 {[%clk 0:00:48.2]} 29. Bc4 {[%clk 0:01:04.8]}
29... Rxa7 {[%clk 0:00:45.9]} 30. Bxe6+ {[%clk 0:01:04.9]} 30... Kxe6 {[%clk
0:00:46.6]} 31. Rd6+ {[%clk 0:01:01.5]} 31... Kf5 {[%clk 0:00:36.2]} 32. Bxa7
{[%clk 0:01:02.4]} 32... Ra8 {[%clk 0:00:34.7]} 33. Rd7 {[%clk 0:00:54.9]} 33...
Nc6 {[%clk 0:00:31.4]} 34. Be3 {[%clk 0:00:44.8]} 34... Rxa2 {[%clk 0:00:32.3]}
35. Rxh7 {[%clk 0:00:44.6]} 35... g5 {[%clk 0:00:28.3]} 36. h3 {[%clk
0:00:44.1]} 36... Nd4 {[%clk 0:00:24.5]} 37. Rh6 {[%clk 0:00:42.3]} 37... Nf3+
{[%clk 0:00:11.7]} 38. Kg2 {[%clk 0:00:40.4]} 38... Ke4 {[%clk 0:00:11.7]} 39.
Rxf6 {[%clk 0:00:37.4]} 39... Ne1+ {[%clk 0:00:11.4]} 40. Kf1 {[%clk 0:00:36.2]}
40... Nf3 {[%clk 0:00:09.8]} 41. Kg2 {[%clk 0:00:35.4]} 41... Ne1+ {[%clk
0:00:09.4]} 42. Kh1 {[%clk 0:00:25.8]} 42... Nf3 {[%clk 0:00:08.4]} 43. Rc6
{[%clk 0:00:22.5]} 43... Ra1+ {[%clk 0:00:05.7]} 44. Rc1 {[%clk 0:00:22.6]}
44... Rxc1+ {[%clk 0:00:03.9]} 45. Bxc1 {[%clk 0:00:22.7]} 45... Kd3 {[%clk
0:00:03.9]} 46. Be3 {[%clk 0:00:18.5]} 46... Ke2 {[%clk 0:00:03.8]} 47. Kg2
{[%clk 0:00:18.7]} 47... Ne1+ {[%clk 0:00:03.6]} 48. Kg1 {[%clk 0:00:18.4]}
48... Nf3+ {[%clk 0:00:03.9]} 49. Kg2 {[%clk 0:00:18.1]} 49... Ne1+ {[%clk
0:00:03.9]} 50. Kh2 {[%clk 0:00:18.5]} 50... Nf3+ {[%clk 0:00:04]} 51. Kh1
{[%clk 0:00:18.6]} 51... e4 {[%clk 0:00:02.7]} 52. g4 {[%clk 0:00:17.6]} 52...
Kf1 {[%clk 0:00:01.3]} 53. Bc5 {[%clk 0:00:15.1]} 1-0

[Event "*** Titled Tuesday Blitz"]
[Site "Chess.com"]
[Date "2020.05.19"]
[Round "8"]
[White "grunbergmihai"]
[Black "SerGo055"]
[Result "0-1"]
[WhiteElo "2409"]
[BlackElo "2571"]
[TimeControl "180+1"]
[EndTime "13:37:12 PDT"]
[Termination "SerGo055 won by resignation"]

1. Nf3 {[%clk 0:03:00.9]} 1... Nf6 {[%clk 0:02:59.4]} 2. c4 {[%clk 0:03:00.1]}
2... c6 {[%clk 0:02:58.2]} 3. g3 {[%clk 0:03:00]} 3... d5 {[%clk 0:02:56.9]} 4.
Bg2 {[%clk 0:03:00.9]} 4... Bf5 {[%clk 0:02:56.1]} 5. O-O {[%clk 0:03:01.8]}
5... e6 {[%clk 0:02:56.4]} 6. cxd5 {[%clk 0:03:01.8]} 6... exd5 {[%clk
0:02:55.9]} 7. d3 {[%clk 0:03:02.7]} 7... Be7 {[%clk 0:02:54.8]} 8. Nc3 {[%clk
0:03:02.6]} 8... O-O {[%clk 0:02:54.2]} 9. Qb3 {[%clk 0:03:01.3]} 9... Qb6
{[%clk 0:02:53.4]} 10. Qc2 {[%clk 0:03:00.8]} 10... h6 {[%clk 0:02:50.9]} 11. e4
{[%clk 0:03:00.3]} 11... dxe4 {[%clk 0:02:50.1]} 12. dxe4 {[%clk 0:03:00.3]}
12... Bh7 {[%clk 0:02:50]} 13. Be3 {[%clk 0:02:59.9]} 13... Qa5 {[%clk
0:02:39.1]} 14. a3 {[%clk 0:02:52.4]} 14... Nbd7 {[%clk 0:02:36.7]} 15. b4
{[%clk 0:02:50.2]} 15... Qh5 {[%clk 0:02:32.4]} 16. h3 {[%clk 0:02:47.2]} 16...
Ne5 {[%clk 0:02:31.6]} 17. Nxe5 {[%clk 0:02:37.8]} 17... Qxe5 {[%clk 0:02:26.6]}
18. f4 {[%clk 0:02:33.6]} 18... Qe6 {[%clk 0:02:16.8]} 19. Rae1 {[%clk
0:02:30.1]} 19... a5 {[%clk 0:02:14.7]} 20. f5 {[%clk 0:02:09.9]} 20... Qc4
{[%clk 0:02:13.3]} 21. bxa5 {[%clk 0:01:47.9]} 21... Rxa5 {[%clk 0:02:08.9]} 22.
a4 {[%clk 0:01:36.4]} 22... Bb4 {[%clk 0:02:06]} 23. Rc1 {[%clk 0:01:36]} 23...
Bxc3 {[%clk 0:02:02.5]} 24. Qxc3 {[%clk 0:01:34.8]} 24... Qxc3 {[%clk
0:02:02.5]} 25. Rxc3 {[%clk 0:01:34.6]} 25... Rxa4 {[%clk 0:02:02.6]} 26. e5
{[%clk 0:01:33]} 26... Ne4 {[%clk 0:01:47.8]} 27. Bxe4 {[%clk 0:01:16.4]} 27...
Rxe4 {[%clk 0:01:48.7]} 28. Bc5 {[%clk 0:01:16.6]} 28... Re8 {[%clk 0:01:43.5]}
29. Bd6 {[%clk 0:01:15]} 29... h5 {[%clk 0:01:34.8]} 30. Rb3 {[%clk 0:00:50.6]}
30... b5 {[%clk 0:01:33.7]} 31. Rc3 {[%clk 0:00:49.8]} 31... Rc8 {[%clk
0:01:30.6]} 32. Kg2 {[%clk 0:00:34]} 32... g6 {[%clk 0:01:29.8]} 33. f6 {[%clk
0:00:30.5]} 33... g5 {[%clk 0:01:29.6]} 34. Rfc1 {[%clk 0:00:28.5]} 34... Ra4
{[%clk 0:01:17.5]} 35. Kf2 {[%clk 0:00:26.4]} 35... Be4 {[%clk 0:01:16.3]} 36.
Re3 {[%clk 0:00:26.1]} 36... Ra2+ {[%clk 0:01:10.6]} 37. Ke1 {[%clk 0:00:23]}
37... Bd5 {[%clk 0:01:09.2]} 38. Rd3 {[%clk 0:00:22.7]} 38... Rca8 {[%clk
0:01:07.8]} 39. e6 {[%clk 0:00:18.7]} 39... fxe6 {[%clk 0:01:02.6]} 40. Re3
{[%clk 0:00:13.7]} 40... Kf7 {[%clk 0:00:58.1]} 41. Be5 {[%clk 0:00:13.1]} 41...
Rh2 {[%clk 0:00:56.6]} 42. g4 {[%clk 0:00:12.4]} 42... Raa2 {[%clk 0:00:55.3]}
43. Bxh2 {[%clk 0:00:11.7]} 43... Rxh2 {[%clk 0:00:55.1]} 44. gxh5 {[%clk
0:00:11.5]} 44... Kxf6 {[%clk 0:00:54.7]} 45. Rd1 {[%clk 0:00:09.7]} 45... b4
{[%clk 0:00:49.3]} 46. Rd2 {[%clk 0:00:09.4]} 46... Rh1+ {[%clk 0:00:49.1]} 47.
Ke2 {[%clk 0:00:09.4]} 47... b3 {[%clk 0:00:49]} 48. Kd3 {[%clk 0:00:09.4]}
48... c5 {[%clk 0:00:47.3]} 49. Kc3 {[%clk 0:00:09.2]} 49... c4 {[%clk
0:00:45.2]} 50. Rf2+ {[%clk 0:00:08.9]} 50... Kg7 {[%clk 0:00:44]} 51. Re5
{[%clk 0:00:08.2]} 51... Kh6 {[%clk 0:00:42.5]} 52. Rf6+ {[%clk 0:00:07.6]}
52... Kxh5 {[%clk 0:00:42.3]} 53. Rf8 {[%clk 0:00:06.2]} 53... Rxh3+ {[%clk
0:00:41.8]} 54. Kb2 {[%clk 0:00:03.9]} 54... c3+ {[%clk 0:00:41.9]} 55. Ka3
{[%clk 0:00:03.6]} 55... b2 {[%clk 0:00:40.6]} 56. Rh8+ {[%clk 0:00:03.3]} 56...
Kg4 {[%clk 0:00:40.2]} 57. Rxh3 {[%clk 0:00:02.4]} 57... Kxh3 {[%clk 0:00:40.1]}
58. Re1 {[%clk 0:00:01.6]} 0-1

[Event "*** Titled Tuesday Blitz"]
[Site "Chess.com"]
[Date "2020.05.19"]
[Round "8"]
[White "1stSecond"]
[Black "kirillshevchenko"]
[Result "0-1"]
[WhiteElo "2740"]
[BlackElo "2935"]
[TimeControl "180+1"]
[EndTime "13:37:15 PDT"]
[Termination "kirillshevchenko won by resignation"]

1. Nf3 {[%clk 0:03:00.5]} 1... Nf6 {[%clk 0:03:00.3]} 2. g3 {[%clk 0:03:00.7]}
2... g6 {[%clk 0:03:00.7]} 3. Bg2 {[%clk 0:03:01]} 3... Bg7 {[%clk 0:03:01.6]}
4. O-O {[%clk 0:03:01.2]} 4... O-O {[%clk 0:03:02.5]} 5. d4 {[%clk 0:02:59.6]}
5... d5 {[%clk 0:03:02.7]} 6. a4 {[%clk 0:02:59.4]} 6... a5 {[%clk 0:02:57.3]}
7. Nbd2 {[%clk 0:02:56]} 7... Nc6 {[%clk 0:02:54.1]} 8. Re1 {[%clk 0:02:51.6]}
8... Bf5 {[%clk 0:02:49.8]} 9. c3 {[%clk 0:02:51.4]} 9... Re8 {[%clk 0:02:29.9]}
10. Qb3 {[%clk 0:02:48.9]} 10... Rb8 {[%clk 0:02:22.6]} 11. Ne5 {[%clk
0:02:42.7]} 11... Nxe5 {[%clk 0:01:54.6]} 12. dxe5 {[%clk 0:02:42.7]} 12... Ne4
{[%clk 0:01:55.5]} 13. Nxe4 {[%clk 0:02:40.3]} 13... Bxe4 {[%clk 0:01:51]} 14.
Bxe4 {[%clk 0:02:14.1]} 14... dxe4 {[%clk 0:01:51.9]} 15. e6 {[%clk 0:01:59]}
15... fxe6 {[%clk 0:01:16]} 16. Qxe6+ {[%clk 0:01:49]} 16... Kh8 {[%clk
0:01:16.3]} 17. Bf4 {[%clk 0:01:47.5]} 17... Qc8 {[%clk 0:01:13]} 18. Qxe4
{[%clk 0:01:47.2]} 18... e5 {[%clk 0:01:09.2]} 19. Bg5 {[%clk 0:01:36.8]} 19...
Qe6 {[%clk 0:01:09.5]} 20. Red1 {[%clk 0:01:35.2]} 20... c6 {[%clk 0:01:06.8]}
21. Rd2 {[%clk 0:01:27.4]} 21... Rf8 {[%clk 0:00:48.2]} 22. Rad1 {[%clk
0:01:24]} 22... Qf7 {[%clk 0:00:44]} 23. Be3 {[%clk 0:01:23.2]} 23... Rbe8
{[%clk 0:00:40.9]} 24. Bc5 {[%clk 0:01:20.3]} 24... Rg8 {[%clk 0:00:40.3]} 25.
Rd7 {[%clk 0:01:17.8]} 25... Qb3 {[%clk 0:00:40.9]} 26. R1d2 {[%clk 0:01:17.8]}
26... Bh6 {[%clk 0:00:35.9]} 27. Qh4 {[%clk 0:00:57.9]} 27... Bg7 {[%clk
0:00:36]} 28. Rf7 {[%clk 0:00:50.6]} 28... Qxf7 {[%clk 0:00:34.3]} 29. Bb6
{[%clk 0:00:24]} 29... e4 {[%clk 0:00:33.2]} 30. Be3 {[%clk 0:00:19.9]} 30...
Bf6 {[%clk 0:00:32.7]} 31. Qf4 {[%clk 0:00:17.9]} 31... Rd8 {[%clk 0:00:31.8]}
32. Bd4 {[%clk 0:00:17.5]} 32... Rdf8 {[%clk 0:00:31.4]} 33. Bc5 {[%clk
0:00:16.9]} 33... Re8 {[%clk 0:00:27.7]} 34. Rd6 {[%clk 0:00:16]} 34... Re6
{[%clk 0:00:26.1]} 35. Rd1 {[%clk 0:00:13.3]} 35... Qg7 {[%clk 0:00:20.7]} 36.
Bb6 {[%clk 0:00:10.9]} 36... Rge8 {[%clk 0:00:20.5]} 37. Bxa5 {[%clk 0:00:10.2]}
37... e3 {[%clk 0:00:20]} 38. f3 {[%clk 0:00:10.2]} 38... g5 {[%clk 0:00:18.5]}
39. Qg4 {[%clk 0:00:09.3]} 39... Qg6 {[%clk 0:00:18]} 40. Rd7 {[%clk 0:00:08.6]}
40... R8e7 {[%clk 0:00:15.8]} 41. Rd1 {[%clk 0:00:07.6]} 41... h5 {[%clk
0:00:15.5]} 42. Qc4 {[%clk 0:00:07]} 42... g4 {[%clk 0:00:14.7]} 43. Rf1 {[%clk
0:00:04.7]} 43... gxf3 {[%clk 0:00:13.1]} 44. Rxf3 {[%clk 0:00:05.6]} 44... Bg7
{[%clk 0:00:12.6]} 45. Bd8 {[%clk 0:00:05.2]} 45... Rf7 {[%clk 0:00:12.6]} 46.
Bh4 {[%clk 0:00:03.9]} 46... Rxf3 {[%clk 0:00:12.2]} 47. exf3 {[%clk 0:00:04.8]}
47... e2 {[%clk 0:00:12.6]} 48. g4 {[%clk 0:00:04.4]} 48... e1=Q+ {[%clk
0:00:11.4]} 49. Bxe1 {[%clk 0:00:04.9]} 49... Rxe1+ {[%clk 0:00:12.2]} 50. Kf2
{[%clk 0:00:05.4]} 50... Re5 {[%clk 0:00:10.7]} 51. Qf4 {[%clk 0:00:05.2]} 51...
Qf6 {[%clk 0:00:10]} 52. Qxf6 {[%clk 0:00:05.3]} 52... Bxf6 {[%clk 0:00:10.1]}
0-1

[Event "*** Titled Tuesday Blitz"]
[Site "Chess.com"]
[Date "2020.05.19"]
[Round "8"]
[White "promen1999"]
[Black "Man-Chuk"]
[Result "1-0"]
[WhiteElo "2898"]
[BlackElo "2738"]
[TimeControl "180+1"]
[EndTime "13:37:16 PDT"]
[Termination "promen1999 won by resignation"]

1. Nf3 {[%clk 0:03:00.9]} 1... d5 {[%clk 0:02:59.4]} 2. g3 {[%clk 0:03:00.3]}
2... g6 {[%clk 0:02:59.7]} 3. Bg2 {[%clk 0:03:00.2]} 3... Bg7 {[%clk 0:02:59.9]}
4. d4 {[%clk 0:03:00.4]} 4... Nd7 {[%clk 0:02:59.5]} 5. O-O {[%clk 0:02:59.6]}
5... Ngf6 {[%clk 0:02:59.1]} 6. c4 {[%clk 0:02:50.7]} 6... dxc4 {[%clk
0:02:58.8]} 7. a4 {[%clk 0:02:51]} 7... a5 {[%clk 0:02:56.2]} 8. Qc2 {[%clk
0:02:41.6]} 8... Nb6 {[%clk 0:02:53.9]} 9. Nbd2 {[%clk 0:02:41.3]} 9... O-O
{[%clk 0:02:32.8]} 10. Nxc4 {[%clk 0:02:31.3]} 10... Bf5 {[%clk 0:02:32.2]} 11.
Qc3 {[%clk 0:02:31.5]} 11... Ne4 {[%clk 0:02:17.4]} 12. Qb3 {[%clk 0:02:31.5]}
12... Be6 {[%clk 0:02:17.3]} 13. Qc2 {[%clk 0:02:29.6]} 13... Bxc4 {[%clk
0:01:38.4]} 14. Qxe4 {[%clk 0:02:29]} 14... Bd5 {[%clk 0:01:36.9]} 15. Qc2
{[%clk 0:02:28.5]} 15... f5 {[%clk 0:01:33.1]} 16. Rd1 {[%clk 0:02:27]} 16...
Be4 {[%clk 0:01:28.6]} 17. Qc5 {[%clk 0:02:19.3]} 17... Qd6 {[%clk 0:00:58.4]}
18. Bf4 {[%clk 0:01:49.5]} 18... Qxc5 {[%clk 0:00:58.5]} 19. dxc5 {[%clk
0:01:49.6]} 19... Nd5 {[%clk 0:00:59.1]} 20. Be5 {[%clk 0:01:39.2]} 20... c6
{[%clk 0:00:50.6]} 21. Bxg7 {[%clk 0:01:38.8]} 21... Kxg7 {[%clk 0:00:51.5]} 22.
Ng5 {[%clk 0:01:36.9]} 22... Rf6 {[%clk 0:00:17.5]} 23. Nxe4 {[%clk 0:01:22.3]}
23... fxe4 {[%clk 0:00:18.4]} 24. Bxe4 {[%clk 0:01:22.9]} 24... e6 {[%clk
0:00:18.7]} 25. Bg2 {[%clk 0:01:13]} 25... g5 {[%clk 0:00:18.6]} 26. e4 {[%clk
0:01:10.8]} 26... Nb4 {[%clk 0:00:18.9]} 27. Rd7+ {[%clk 0:01:08.1]} 27... Rf7
{[%clk 0:00:19.4]} 28. Rad1 {[%clk 0:01:08.4]} 28... Rf8 {[%clk 0:00:20]} 29.
Bh3 {[%clk 0:01:04.1]} 29... Kf6 {[%clk 0:00:13.3]} 30. R7d6 {[%clk 0:01:00.8]}
30... Re7 {[%clk 0:00:13.4]} 31. f4 {[%clk 0:00:55.6]} 31... gxf4 {[%clk
0:00:14.3]} 32. gxf4 {[%clk 0:00:56.5]} 32... Na6 {[%clk 0:00:14]} 33. Rc1
{[%clk 0:00:55.7]} 33... Kg7 {[%clk 0:00:13.8]} 34. f5 {[%clk 0:00:38.8]} 34...
exf5 {[%clk 0:00:14.7]} 35. Bxf5 {[%clk 0:00:38.9]} 35... Re5 {[%clk 0:00:13.2]}
36. Rc3 {[%clk 0:00:36.7]} 36... Nxc5 {[%clk 0:00:09.8]} 37. Rg3+ {[%clk
0:00:36.7]} 37... Kh8 {[%clk 0:00:10.4]} 38. Rh6 {[%clk 0:00:35.5]} 38... Re7
{[%clk 0:00:10.4]} 39. Rg4 {[%clk 0:00:31.2]} 39... Nd3 {[%clk 0:00:08.1]} 40.
b3 {[%clk 0:00:22.3]} 40... Rg8 {[%clk 0:00:07.7]} 41. Rxg8+ {[%clk 0:00:21.2]}
41... Kxg8 {[%clk 0:00:08.6]} 42. Rd6 {[%clk 0:00:21.9]} 42... Ne5 {[%clk
0:00:09.2]} 43. Kf2 {[%clk 0:00:21.5]} 43... Kg7 {[%clk 0:00:09.2]} 44. Ke3
{[%clk 0:00:21.8]} 44... b6 {[%clk 0:00:05]} 45. Kf4 {[%clk 0:00:21.4]} 45... b5
{[%clk 0:00:05.6]} 46. axb5 {[%clk 0:00:20.6]} 46... cxb5 {[%clk 0:00:06.5]} 47.
Rd5 {[%clk 0:00:21.3]} 47... Nc6 {[%clk 0:00:03.2]} 48. Rxb5 {[%clk 0:00:21.5]}
48... Rc7 {[%clk 0:00:02.5]} 49. Rc5 {[%clk 0:00:19.7]} 49... Kf6 {[%clk
0:00:02.9]} 50. e5+ {[%clk 0:00:19.2]} 50... Ke7 {[%clk 0:00:02.6]} 51. Be4
{[%clk 0:00:19.9]} 51... Kd7 {[%clk 0:00:02]} 52. Rxc6 {[%clk 0:00:20]} 52...
Rxc6 {[%clk 0:00:02.9]} 53. Bxc6+ {[%clk 0:00:20.7]} 53... Kxc6 {[%clk
0:00:03.8]} 54. Kf5 {[%clk 0:00:21.3]} 54... Kc5 {[%clk 0:00:04.3]} 55. e6
{[%clk 0:00:21.7]} 55... a4 {[%clk 0:00:05.2]} 56. bxa4 {[%clk 0:00:21.3]} 1-0

[Event "*** Titled Tuesday Blitz"]
[Site "Chess.com"]
[Date "2020.05.19"]
[Round "8"]
[White "Hasangatin_Ramil"]
[Black "ChelsieMonica"]
[Result "1-0"]
[WhiteElo "2598"]
[BlackElo "2369"]
[TimeControl "180+1"]
[EndTime "13:37:16 PDT"]
[Termination "Hasangatin_Ramil won by checkmate"]

1. e4 {[%clk 0:03:00.9]} 1... e5 {[%clk 0:02:58.8]} 2. Nf3 {[%clk 0:02:56.6]}
2... Nc6 {[%clk 0:02:58.2]} 3. Bb5 {[%clk 0:02:56.1]} 3... a6 {[%clk 0:02:57.2]}
4. Ba4 {[%clk 0:02:56.1]} 4... Nf6 {[%clk 0:02:56.9]} 5. Bxc6 {[%clk 0:02:56]}
5... dxc6 {[%clk 0:02:55.6]} 6. d3 {[%clk 0:02:55.8]} 6... Bd6 {[%clk
0:02:53.7]} 7. Bg5 {[%clk 0:02:54.9]} 7... h6 {[%clk 0:02:52.3]} 8. Bh4 {[%clk
0:02:54.8]} 8... O-O {[%clk 0:02:48.7]} 9. Nbd2 {[%clk 0:02:54.1]} 9... b5
{[%clk 0:02:47.9]} 10. Qe2 {[%clk 0:02:53]} 10... Qe7 {[%clk 0:02:37]} 11. O-O
{[%clk 0:02:51.4]} 11... Qe6 {[%clk 0:02:25.1]} 12. d4 {[%clk 0:02:37.7]} 12...
Nd7 {[%clk 0:02:13.8]} 13. Bg3 {[%clk 0:02:30.7]} 13... f6 {[%clk 0:02:01.6]}
14. Rfe1 {[%clk 0:02:23.1]} 14... a5 {[%clk 0:01:59]} 15. c4 {[%clk 0:02:04]}
15... bxc4 {[%clk 0:01:36.9]} 16. Qxc4 {[%clk 0:02:00.9]} 16... Qxc4 {[%clk
0:01:34.2]} 17. Nxc4 {[%clk 0:02:01.8]} 17... Ba6 {[%clk 0:01:30.8]} 18. Rac1
{[%clk 0:02:00.8]} 18... Bxc4 {[%clk 0:01:13.3]} 19. Rxc4 {[%clk 0:02:01.7]}
19... c5 {[%clk 0:01:13.7]} 20. dxe5 {[%clk 0:01:52]} 20... fxe5 {[%clk
0:01:13.1]} 21. Rc2 {[%clk 0:01:47.7]} 21... Rab8 {[%clk 0:01:12.1]} 22. Nd2
{[%clk 0:01:46.6]} 22... a4 {[%clk 0:01:05.4]} 23. f3 {[%clk 0:01:46.1]} 23...
Rb4 {[%clk 0:01:01.1]} 24. Nc4 {[%clk 0:01:44]} 24... Rfb8 {[%clk 0:00:59.9]}
25. Ree2 {[%clk 0:01:42.8]} 25... Kf7 {[%clk 0:00:58.1]} 26. Be1 {[%clk
0:01:33.3]} 26... R4b5 {[%clk 0:00:57.4]} 27. Bc3 {[%clk 0:01:28]} 27... Ke6
{[%clk 0:00:55.8]} 28. Red2 {[%clk 0:01:25.4]} 28... Nb6 {[%clk 0:00:52.1]} 29.
Na3 {[%clk 0:01:24.6]} 29... Nc8 {[%clk 0:00:47.1]} 30. Nxb5 {[%clk 0:01:23.8]}
30... Rxb5 {[%clk 0:00:48]} 31. g3 {[%clk 0:01:13.4]} 31... Nb6 {[%clk 0:00:48]}
32. f4 {[%clk 0:01:12.2]} 32... Nc4 {[%clk 0:00:47.7]} 33. f5+ {[%clk
0:01:07.3]} 33... Kf6 {[%clk 0:00:45.8]} 34. Re2 {[%clk 0:01:07.7]} 34... Nb6
{[%clk 0:00:37.2]} 35. Kg2 {[%clk 0:01:05.2]} 35... c4 {[%clk 0:00:35.9]} 36. g4
{[%clk 0:00:59.7]} 36... Kf7 {[%clk 0:00:34.8]} 37. h4 {[%clk 0:00:59.7]} 37...
Be7 {[%clk 0:00:35.2]} 38. Kg3 {[%clk 0:00:57.3]} 38... Nd7 {[%clk 0:00:33.3]}
39. Rcd2 {[%clk 0:00:53.1]} 39... Bd6 {[%clk 0:00:30.3]} 40. g5 {[%clk
0:00:51.9]} 40... hxg5 {[%clk 0:00:29.9]} 41. hxg5 {[%clk 0:00:52.8]} 41... Nc5
{[%clk 0:00:29.4]} 42. Rd5 {[%clk 0:00:49.5]} 42... a3 {[%clk 0:00:23.4]} 43.
bxa3 {[%clk 0:00:47.9]} 43... Nxe4+ {[%clk 0:00:10]} 44. Rxe4 {[%clk 0:00:35.8]}
44... Rxd5 {[%clk 0:00:10.9]} 45. Rxc4 {[%clk 0:00:34.6]} 45... e4+ {[%clk
0:00:10.1]} 46. Kg4 {[%clk 0:00:34.8]} 46... Rd3 {[%clk 0:00:09.8]} 47. g6+
{[%clk 0:00:34.6]} 47... Kf8 {[%clk 0:00:09.5]} 48. Bb4 {[%clk 0:00:34.3]} 48...
Rg3+ {[%clk 0:00:09.3]} 49. Kh4 {[%clk 0:00:34.4]} 49... Rf3 {[%clk 0:00:08.7]}
50. Bxd6+ {[%clk 0:00:32.3]} 50... cxd6 {[%clk 0:00:09.6]} 51. Rc8+ {[%clk
0:00:30.2]} 51... Ke7 {[%clk 0:00:09.4]} 52. Rc7+ {[%clk 0:00:30.6]} 52... Ke8
{[%clk 0:00:09.9]} 53. Kg4 {[%clk 0:00:27.2]} 53... Rxa3 {[%clk 0:00:08.8]} 54.
Rxg7 {[%clk 0:00:26.4]} 54... e3 {[%clk 0:00:08.6]} 55. f6 {[%clk 0:00:25.3]}
55... e2 {[%clk 0:00:07.7]} 56. Re7+ {[%clk 0:00:25.2]} 56... Kf8 {[%clk
0:00:06.9]} 57. g7+ {[%clk 0:00:25.1]} 57... Kg8 {[%clk 0:00:06]} 58. Re8+
{[%clk 0:00:26]} 58... Kf7 {[%clk 0:00:06.8]} 59. g8=Q+ {[%clk 0:00:26.4]} 59...
Kxf6 {[%clk 0:00:07.7]} 60. Re6# {[%clk 0:00:25.1]} 1-0